[Event "Titled Tuesday Blitz April 19 Late 2022"]
[White "Hernandez Bermudez, Ulises Eduardo"]
[Black "Sernecki, Franciszek"]
[WhiteFideId "3902510"]
[BlackFideId "1169297"]
[WhiteElo "2056"]
[BlackElo "2165"]
[Result "0-1"]
[Round "03"]
[TimeControl "180+1"]
[Date "2022.04.19"]
[WhiteClock "0:01:29"]
[BlackClock "0:00:06"]

1. e4 {[%clk 0:03:00]}  c6 {[%clk 0:02:58]} 2. d4 {[%clk 0:03:00]}  d5 {[%clk 0:02:57]} 3. e5 {[%clk 0:02:58]}  Bf5 {[%clk 0:02:56]} 4. h4 {[%clk 0:02:58]}  h6 {[%clk 0:02:56]} 5. Bd3 {[%clk 0:02:57]}  Bxd3 {[%clk 0:02:50]} 6. Qxd3 {[%clk 0:02:57]}  e6 {[%clk 0:02:50]} 7. Nf3 {[%clk 0:02:57]}  Qa5+ {[%clk 0:02:49]} 8. c3 {[%clk 0:02:55]}  Qa6 {[%clk 0:02:50]} 9. Qxa6 {[%clk 0:02:51]}  Nxa6 {[%clk 0:02:51]} 10. O-O {[%clk 0:02:51]}  Ne7 {[%clk 0:02:48]} 11. b4 {[%clk 0:02:50]}  Nc7 {[%clk 0:02:36]} 12. a4 {[%clk 0:02:49]}  a5 {[%clk 0:02:28]} 13. Nbd2 {[%clk 0:02:44]}  Nc8 {[%clk 0:02:23]} 14. bxa5 {[%clk 0:02:37]}  Rxa5 {[%clk 0:02:11]} 15. Nb3 {[%clk 0:02:34]}  Ra7 {[%clk 0:02:06]} 16. Bd2 {[%clk 0:02:31]}  Nb6 {[%clk 0:01:58]} 17. a5 {[%clk 0:02:25]}  Nc4 {[%clk 0:01:56]} 18. Be3 {[%clk 0:02:22]}  Be7 {[%clk 0:01:49]} 19. Nfd2 {[%clk 0:02:20]}  Nxd2 {[%clk 0:01:35]} 20. Nxd2 {[%clk 0:02:18]}  Bxh4 {[%clk 0:01:32]} 21. c4 {[%clk 0:02:16]}  O-O {[%clk 0:01:31]} 22. cxd5 {[%clk 0:02:16]}  Nxd5 {[%clk 0:01:26]} 23. Rfb1 {[%clk 0:02:12]}  Rfa8 {[%clk 0:01:21]} 24. Nc4 {[%clk 0:02:07]}  Bd8 {[%clk 0:01:16]} 25. Rb3 {[%clk 0:02:04]}  Bxa5 {[%clk 0:01:04]} 26. Nxa5 {[%clk 0:02:02]}  Rxa5 {[%clk 0:01:03]} 27. Rxa5 {[%clk 0:02:02]}  Rxa5 {[%clk 0:01:04]} 28. Rxb7 {[%clk 0:02:03]}  Rb5 {[%clk 0:00:47]} 29. Ra7 {[%clk 0:01:59]}  Rb1+ {[%clk 0:00:39]} 30. Kh2 {[%clk 0:01:57]}  Rb3 {[%clk 0:00:35]} 31. Ra8+ {[%clk 0:01:54]}  Kh7 {[%clk 0:00:35]} 32. Rc8 {[%clk 0:01:53]}  Nxe3 {[%clk 0:00:33]} 33. fxe3 {[%clk 0:01:53]}  Rxe3 {[%clk 0:00:33]} 34. Rxc6 {[%clk 0:01:52]}  Rd3 {[%clk 0:00:34]} 35. Rd6 {[%clk 0:01:52]}  Kg6 {[%clk 0:00:34]} 36. Rd7 {[%clk 0:01:51]}  f6 {[%clk 0:00:29]} 37. Rd6 {[%clk 0:01:48]}  Kf5 {[%clk 0:00:25]} 38. exf6 {[%clk 0:01:48]}  gxf6 {[%clk 0:00:24]} 39. Kg1 {[%clk 0:01:44]}  Rd2 {[%clk 0:00:17]} 40. Kh2 {[%clk 0:01:42]}  Rd3 {[%clk 0:00:16]} 41. Kg1 {[%clk 0:01:42]}  e5 {[%clk 0:00:17]} 42. dxe5 {[%clk 0:01:41]}  Rxd6 {[%clk 0:00:13]} 43. exd6 {[%clk 0:01:41]}  Ke6 {[%clk 0:00:14]} 44. Kf2 {[%clk 0:01:39]}  Kxd6 {[%clk 0:00:14]} 45. Kf3 {[%clk 0:01:39]}  Ke5 {[%clk 0:00:14]} 46. Ke3 {[%clk 0:01:39]}  Kf5 {[%clk 0:00:13]} 47. Kf3 {[%clk 0:01:39]}  h5 {[%clk 0:00:11]} 48. g3 {[%clk 0:01:39]}  Kg5 {[%clk 0:00:11]} 49. Kf2 {[%clk 0:01:35]}  Kg4 {[%clk 0:00:10]} 50. Kg2 {[%clk 0:01:35]}  f5 {[%clk 0:00:06]} 51. Kf2 {[%clk 0:01:33]}  Kh3 {[%clk 0:00:06]} 52. Kf3 {[%clk 0:01:33]}  Kh2 {[%clk 0:00:06]} 53. Kf4 {[%clk 0:01:33]}  Kg2 {[%clk 0:00:06]} 54. Kxf5 {[%clk 0:01:28]}  Kxg3 {[%clk 0:00:06]} 55. Kg5 {[%clk 0:01:29]}  h4 {[%clk 0:00:06]} 0-1


[Site "https://www.chess.com"]

[Event "Titled Tuesday Blitz April 19 Late 2022"]
[White "Ibadov, Dashgyn"]
[Black "Timofeev, Artyom"]
[WhiteFideId "24107514"]
[BlackFideId "4140419"]
[WhiteElo "2514"]
[BlackElo "2866"]
[Result "0-1"]
[Round "03"]
[TimeControl "180+1"]
[Date "2022.04.19"]
[WhiteClock "0:00:19"]
[BlackClock "0:01:38"]

1. e4 {[%clk 0:03:00]}  c5 {[%clk 0:02:59]} 2. Nf3 {[%clk 0:02:59]}  Nc6 {[%clk 0:02:59]} 3. d4 {[%clk 0:02:57]}  cxd4 {[%clk 0:02:59]} 4. Nxd4 {[%clk 0:02:57]}  e5 {[%clk 0:02:59]} 5. Nb5 {[%clk 0:02:56]}  a6 {[%clk 0:02:59]} 6. Nd6+ {[%clk 0:02:55]}  Bxd6 {[%clk 0:02:59]} 7. Qxd6 {[%clk 0:02:56]}  Qe7 {[%clk 0:03:00]} 8. Qxe7+ {[%clk 0:02:48]}  Ngxe7 {[%clk 0:02:59]} 9. c3 {[%clk 0:02:31]}  d5 {[%clk 0:02:57]} 10. exd5 {[%clk 0:02:32]}  Nxd5 {[%clk 0:02:57]} 11. Bc4 {[%clk 0:02:30]}  Be6 {[%clk 0:02:55]} 12. Nd2 {[%clk 0:02:20]}  b5 {[%clk 0:02:46]} 13. Bb3 {[%clk 0:02:09]}  Nf4 {[%clk 0:02:46]} 14. Bxe6 {[%clk 0:02:02]}  Nxe6 {[%clk 0:02:45]} 15. Nf3 {[%clk 0:01:55]}  f6 {[%clk 0:02:42]} 16. Be3 {[%clk 0:01:54]}  Ke7 {[%clk 0:02:31]} 17. Ke2 {[%clk 0:01:45]}  g5 {[%clk 0:02:29]} 18. Rhd1 {[%clk 0:01:25]}  h5 {[%clk 0:02:27]} 19. a4 {[%clk 0:01:20]}  h4 {[%clk 0:02:17]} 20. h3 {[%clk 0:01:18]}  e4 {[%clk 0:02:12]} 21. Nd4 {[%clk 0:01:14]}  Ncxd4+ {[%clk 0:02:05]} 22. Bxd4 {[%clk 0:01:14]}  Rhc8 {[%clk 0:01:57]} 23. f3 {[%clk 0:00:28]}  Nf4+ {[%clk 0:01:51]} 24. Kf1 {[%clk 0:00:20]}  exf3 {[%clk 0:01:49]} 25. gxf3 {[%clk 0:00:21]}  Nxh3 {[%clk 0:01:49]} 26. Re1+ {[%clk 0:00:19]}  Kf7 {[%clk 0:01:48]} 27. axb5 {[%clk 0:00:17]}  axb5 {[%clk 0:01:48]} 28. Rxa8 {[%clk 0:00:18]}  Rxa8 {[%clk 0:01:48]} 29. Bc5 {[%clk 0:00:19]}  Nf4 {[%clk 0:01:45]} 30. Re7+ {[%clk 0:00:19]}  Kg6 {[%clk 0:01:46]} 31. Bd4 {[%clk 0:00:20]}  h3 {[%clk 0:01:40]} 32. Kf2 {[%clk 0:00:19]}  Ra2 {[%clk 0:01:38]} 0-1


[Site "https://www.chess.com"]

[Event "Titled Tuesday Blitz April 19 Late 2022"]
[White "Ibarra Jerez, Jose Carlos"]
[Black "Nazaretyan, Tigran"]
[WhiteFideId "2226332"]
[BlackFideId "24162345"]
[WhiteElo "2626"]
[BlackElo "2225"]
[Result "1-0"]
[Round "03"]
[TimeControl "180+1"]
[Date "2022.04.19"]
[WhiteClock "0:00:45"]
[BlackClock "0:00:07"]

1. d4 {[%clk 0:03:00]}  Nf6 {[%clk 0:02:59]} 2. Bf4 {[%clk 0:02:59]}  d6 {[%clk 0:02:58]} 3. Nc3 {[%clk 0:02:58]}  Nbd7 {[%clk 0:02:56]} 4. Nf3 {[%clk 0:02:57]}  c5 {[%clk 0:02:52]} 5. d5 {[%clk 0:02:56]}  b5 {[%clk 0:02:49]} 6. Nxb5 {[%clk 0:02:50]}  Rb8 {[%clk 0:02:41]} 7. Nc3 {[%clk 0:02:38]}  Rxb2 {[%clk 0:02:40]} 8. e3 {[%clk 0:02:39]}  Qa5 {[%clk 0:02:34]} 9. Qd2 {[%clk 0:02:38]}  Nb6 {[%clk 0:02:19]} 10. e4 {[%clk 0:02:32]}  g6 {[%clk 0:02:11]} 11. Nd1 {[%clk 0:02:28]}  Qxd2+ {[%clk 0:02:01]} 12. Nxd2 {[%clk 0:02:28]}  Rxc2 {[%clk 0:02:00]} 13. Bd3 {[%clk 0:02:28]}  Nh5 {[%clk 0:01:47]} 14. Bxc2 {[%clk 0:02:06]}  Nxf4 {[%clk 0:01:46]} 15. g3 {[%clk 0:01:57]}  Nh3 {[%clk 0:01:26]} 16. Ne3 {[%clk 0:01:47]}  Bg7 {[%clk 0:01:24]} 17. Rb1 {[%clk 0:01:47]}  Ba6 {[%clk 0:01:22]} 18. Bd1 {[%clk 0:01:36]}  h5 {[%clk 0:01:17]} 19. Be2 {[%clk 0:01:34]}  Bxe2 {[%clk 0:00:59]} 20. Kxe2 {[%clk 0:01:35]}  Kd7 {[%clk 0:00:58]} 21. f4 {[%clk 0:01:34]}  Kc7 {[%clk 0:00:48]} 22. Rhf1 {[%clk 0:01:23]}  Na4 {[%clk 0:00:45]} 23. Kf3 {[%clk 0:01:19]}  g5 {[%clk 0:00:45]} 24. Ndc4 {[%clk 0:01:14]}  Nc3 {[%clk 0:00:36]} 25. Nf5 {[%clk 0:01:06]}  g4+ {[%clk 0:00:25]} 26. Ke3 {[%clk 0:01:04]}  Bd4+ {[%clk 0:00:21]} 27. Nxd4 {[%clk 0:01:01]}  cxd4+ {[%clk 0:00:21]} 28. Kxd4 {[%clk 0:01:02]}  Nxb1 {[%clk 0:00:21]} 29. Rxb1 {[%clk 0:01:03]}  h4 {[%clk 0:00:19]} 30. Na5 {[%clk 0:00:59]}  hxg3 {[%clk 0:00:17]} 31. Rb7+ {[%clk 0:00:59]}  Kc8 {[%clk 0:00:17]} 32. hxg3 {[%clk 0:00:59]}  Ng1 {[%clk 0:00:16]} 33. Rxa7 {[%clk 0:00:58]}  Rh3 {[%clk 0:00:16]} 34. Nc6 {[%clk 0:00:51]}  Ne2+ {[%clk 0:00:15]} 35. Kc4 {[%clk 0:00:50]}  Rxg3 {[%clk 0:00:15]} 36. Nxe7+ {[%clk 0:00:48]}  Kd8 {[%clk 0:00:15]} 37. Nc6+ {[%clk 0:00:48]}  Ke8 {[%clk 0:00:15]} 38. e5 {[%clk 0:00:48]}  Nxf4 {[%clk 0:00:14]} 39. exd6 {[%clk 0:00:46]}  Rc3+ {[%clk 0:00:03]} 40. Kxc3 {[%clk 0:00:44]}  Nxd5+ {[%clk 0:00:04]} 41. Kd4 {[%clk 0:00:44]}  Nf6 {[%clk 0:00:04]} 42. d7+ {[%clk 0:00:43]}  Nxd7 {[%clk 0:00:04]} 43. Ra8+ {[%clk 0:00:44]}  Nb8 {[%clk 0:00:03]} 44. Rxb8+ {[%clk 0:00:44]}  Kd7 {[%clk 0:00:04]} 45. Ne5+ {[%clk 0:00:45]}  Kc7 {[%clk 0:00:03]} 46. Rf8 {[%clk 0:00:45]}  f5 {[%clk 0:00:03]} 47. Rxf5 {[%clk 0:00:45]}  g3 {[%clk 0:00:04]} 48. Rg5 {[%clk 0:00:45]}  g2 {[%clk 0:00:05]} 49. Rxg2 {[%clk 0:00:45]}  Kd6 {[%clk 0:00:06]} 50. Rg6+ {[%clk 0:00:45]}  Ke7 {[%clk 0:00:06]} 51. Kd5 {[%clk 0:00:44]}  Kf8 {[%clk 0:00:06]} 52. Rb6 {[%clk 0:00:43]}  Ke7 {[%clk 0:00:06]} 53. a4 {[%clk 0:00:44]}  Kd8 {[%clk 0:00:06]} 54. Rb7 {[%clk 0:00:44]}  Kc8 {[%clk 0:00:06]} 55. Kc6 {[%clk 0:00:43]}  Kd8 {[%clk 0:00:06]} 56. a5 {[%clk 0:00:44]}  Kc8 {[%clk 0:00:06]} 57. a6 {[%clk 0:00:44]}  Kd8 {[%clk 0:00:07]} 58. a7 {[%clk 0:00:45]} 1-0


[Site "https://www.chess.com"]

[Event "Titled Tuesday Blitz April 19 Late 2022"]
[White "Isajevsky, Anton"]
[Black "Dubov, Daniil"]
[WhiteFideId "4142500"]
[BlackFideId "24126055"]
[WhiteElo "2510"]
[BlackElo "2791"]
[Result "0-1"]
[Round "03"]
[TimeControl "180+1"]
[Date "2022.04.19"]
[WhiteClock "0:00:19"]
[BlackClock "0:02:18"]

1. c4 {[%clk 0:03:00]}  e5 {[%clk 0:02:58]} 2. g3 {[%clk 0:03:00]}  Nc6 {[%clk 0:02:58]} 3. Bg2 {[%clk 0:03:00]}  h5 {[%clk 0:02:59]} 4. h3 {[%clk 0:02:49]}  Bc5 {[%clk 0:02:57]} 5. Nc3 {[%clk 0:02:47]}  d6 {[%clk 0:02:57]} 6. Na4 {[%clk 0:02:15]}  h4 {[%clk 0:02:49]} 7. g4 {[%clk 0:02:14]}  f5 {[%clk 0:02:49]} 8. Nxc5 {[%clk 0:02:13]}  dxc5 {[%clk 0:02:49]} 9. gxf5 {[%clk 0:01:49]}  Bxf5 {[%clk 0:02:49]} 10. d3 {[%clk 0:01:49]}  Nf6 {[%clk 0:02:48]} 11. Bxc6+ {[%clk 0:01:37]}  bxc6 {[%clk 0:02:47]} 12. e4 {[%clk 0:01:38]}  Bg6 {[%clk 0:02:45]} 13. Be3 {[%clk 0:01:16]}  Qd6 {[%clk 0:02:40]} 14. Qd2 {[%clk 0:01:09]}  Rd8 {[%clk 0:02:35]} 15. O-O-O {[%clk 0:01:07]}  Qe6 {[%clk 0:02:30]} 16. f3 {[%clk 0:00:56]}  Bh5 {[%clk 0:02:29]} 17. Qg2 {[%clk 0:00:44]}  O-O {[%clk 0:02:27]} 18. Bxc5 {[%clk 0:00:38]}  Rf7 {[%clk 0:02:24]} 19. Be3 {[%clk 0:00:30]}  Rfd7 {[%clk 0:02:22]} 20. Kc2 {[%clk 0:00:19]}  Nxe4 {[%clk 0:02:18]} 0-1


[Site "https://www.chess.com"]

[Event "Titled Tuesday Blitz April 19 Late 2022"]
[White "Jaracz, Pawel"]
[Black "Reprintsev, Alexander"]
[WhiteFideId "1102222"]
[BlackFideId "14100541"]
[WhiteElo "2429"]
[BlackElo "2108"]
[Result "0-1"]
[Round "03"]
[TimeControl "180+1"]
[Date "2022.04.19"]
[WhiteClock "0:00:01"]
[BlackClock "0:00:01"]

1. d4 {[%clk 0:03:00]}  d5 {[%clk 0:02:59]} 2. c4 {[%clk 0:03:00]}  e5 {[%clk 0:02:52]} 3. dxe5 {[%clk 0:03:00]}  d4 {[%clk 0:02:53]} 4. Nf3 {[%clk 0:03:00]}  Nc6 {[%clk 0:02:53]} 5. g3 {[%clk 0:02:58]}  Nge7 {[%clk 0:02:52]} 6. Bg2 {[%clk 0:02:57]}  Ng6 {[%clk 0:02:45]} 7. O-O {[%clk 0:02:46]}  Ngxe5 {[%clk 0:02:44]} 8. Nbd2 {[%clk 0:02:43]}  Nxf3+ {[%clk 0:02:44]} 9. exf3 {[%clk 0:02:40]}  Be7 {[%clk 0:02:44]} 10. f4 {[%clk 0:02:40]}  O-O {[%clk 0:02:43]} 11. Re1 {[%clk 0:02:31]}  Re8 {[%clk 0:02:35]} 12. a3 {[%clk 0:02:28]}  a5 {[%clk 0:02:34]} 13. b3 {[%clk 0:02:28]}  Bf5 {[%clk 0:02:29]} 14. Bb2 {[%clk 0:02:26]}  Qd7 {[%clk 0:02:29]} 15. Nf3 {[%clk 0:02:14]}  Rad8 {[%clk 0:02:28]} 16. Qd2 {[%clk 0:02:13]}  Bf6 {[%clk 0:02:22]} 17. Rxe8+ {[%clk 0:02:08]}  Rxe8 {[%clk 0:02:22]} 18. Rd1 {[%clk 0:02:06]}  Rd8 {[%clk 0:02:12]} 19. Re1 {[%clk 0:02:01]}  Qd6 {[%clk 0:02:00]} 20. h3 {[%clk 0:01:58]}  h5 {[%clk 0:01:58]} 21. Ng5 {[%clk 0:01:52]}  Ne7 {[%clk 0:01:40]} 22. Qxa5 {[%clk 0:01:39]}  b6 {[%clk 0:01:36]} 23. Qd2 {[%clk 0:01:33]}  c5 {[%clk 0:01:36]} 24. Ne4 {[%clk 0:01:33]}  Qc6 {[%clk 0:01:15]} 25. Bf3 {[%clk 0:01:15]}  Bxh3 {[%clk 0:01:08]} 26. Ng5 {[%clk 0:01:06]}  Qd7 {[%clk 0:01:04]} 27. Bxh5 {[%clk 0:01:06]}  Bxg5 {[%clk 0:00:58]} 28. fxg5 {[%clk 0:01:06]}  Nc6 {[%clk 0:00:51]} 29. Qf4 {[%clk 0:01:03]}  Bf5 {[%clk 0:00:42]} 30. Bf3 {[%clk 0:01:02]}  Bc2 {[%clk 0:00:38]} 31. Bd5 {[%clk 0:00:58]}  Rf8 {[%clk 0:00:35]} 32. b4 {[%clk 0:00:49]}  Ne7 {[%clk 0:00:33]} 33. Bf3 {[%clk 0:00:40]}  Ng6 {[%clk 0:00:32]} 34. Qd2 {[%clk 0:00:37]}  Bf5 {[%clk 0:00:30]} 35. bxc5 {[%clk 0:00:25]}  bxc5 {[%clk 0:00:29]} 36. Qa5 {[%clk 0:00:25]}  Rc8 {[%clk 0:00:23]} 37. Qb6 {[%clk 0:00:19]}  Be6 {[%clk 0:00:20]} 38. Qb5 {[%clk 0:00:12]}  Qa7 {[%clk 0:00:16]} 39. Bc1 {[%clk 0:00:08]}  Rb8 {[%clk 0:00:15]} 40. Qc6 {[%clk 0:00:09]}  Bxc4 {[%clk 0:00:14]} 41. Be4 {[%clk 0:00:04]}  Ne7 {[%clk 0:00:12]} 42. Qd6 {[%clk 0:00:04]}  Re8 {[%clk 0:00:10]} 43. Bc6 {[%clk 0:00:03]}  Qa5 {[%clk 0:00:04]} 44. Rxe7 {[%clk 0:00:02]}  Rxe7 {[%clk 0:00:04]} 45. Qxe7 {[%clk 0:00:03]}  g6 {[%clk 0:00:02]} 46. Qe8+ {[%clk 0:00:02]}  Kh7 {[%clk 0:00:02]} 47. Bf3 {[%clk 0:00:01]}  Be6 {[%clk 0:00:01]} 0-1


[Site "https://www.chess.com"]

[Event "Titled Tuesday Blitz April 19 Late 2022"]
[White "Kaasen, Tor Fredrik"]
[Black "Bluebaum, Matthias"]
[WhiteFideId "1516647"]
[BlackFideId "24651516"]
[WhiteElo "2335"]
[BlackElo "2550"]
[Result "1-0"]
[Round "03"]
[TimeControl "180+1"]
[Date "2022.04.19"]
[WhiteClock "0:00:11"]
[BlackClock "0:00:07"]

1. d4 {[%clk 0:03:00]}  Nf6 {[%clk 0:03:00]} 2. c4 {[%clk 0:03:01]}  e6 {[%clk 0:03:00]} 3. Nf3 {[%clk 0:03:00]}  d5 {[%clk 0:03:00]} 4. g3 {[%clk 0:03:01]}  dxc4 {[%clk 0:02:59]} 5. Bg2 {[%clk 0:03:01]}  Bb4+ {[%clk 0:02:59]} 6. Nbd2 {[%clk 0:02:54]}  b5 {[%clk 0:03:00]} 7. O-O {[%clk 0:02:46]}  a5 {[%clk 0:03:00]} 8. Qc2 {[%clk 0:02:37]}  Bb7 {[%clk 0:02:55]} 9. a3 {[%clk 0:02:32]}  Bxd2 {[%clk 0:02:43]} 10. Bxd2 {[%clk 0:02:33]}  a4 {[%clk 0:02:44]} 11. Rad1 {[%clk 0:02:24]}  O-O {[%clk 0:02:42]} 12. Rfe1 {[%clk 0:02:14]}  Be4 {[%clk 0:02:43]} 13. Qc1 {[%clk 0:02:13]}  Nc6 {[%clk 0:02:40]} 14. Bc3 {[%clk 0:02:08]}  Qd5 {[%clk 0:02:34]} 15. Bf1 {[%clk 0:02:02]}  Bxf3 {[%clk 0:02:20]} 16. exf3 {[%clk 0:02:03]}  Qd7 {[%clk 0:02:19]} 17. d5 {[%clk 0:01:59]}  exd5 {[%clk 0:02:03]} 18. Bxf6 {[%clk 0:01:49]}  gxf6 {[%clk 0:02:04]} 19. Qf4 {[%clk 0:01:26]}  Kg7 {[%clk 0:01:37]} 20. Re4 {[%clk 0:01:04]}  d4 {[%clk 0:01:17]} 21. Qh4 {[%clk 0:01:01]}  Qd6 {[%clk 0:00:44]} 22. Bh3 {[%clk 0:00:35]}  Ne5 {[%clk 0:00:42]} 23. Qh5 {[%clk 0:00:29]}  d3 {[%clk 0:00:27]} 24. Rh4 {[%clk 0:00:25]}  Rh8 {[%clk 0:00:27]} 25. Qh6+ {[%clk 0:00:24]}  Kg8 {[%clk 0:00:28]} 26. Re1 {[%clk 0:00:18]}  Nxf3+ {[%clk 0:00:27]} 27. Kh1 {[%clk 0:00:15]}  Nxh4 {[%clk 0:00:14]} 28. gxh4 {[%clk 0:00:16]}  f5 {[%clk 0:00:07]} 29. Rg1+ {[%clk 0:00:14]}  Qg6 {[%clk 0:00:08]} 30. Bxf5 {[%clk 0:00:15]}  Rd8 {[%clk 0:00:05]} 31. Bxg6 {[%clk 0:00:13]}  hxg6 {[%clk 0:00:06]} 32. Rxg6+ {[%clk 0:00:13]}  fxg6 {[%clk 0:00:07]} 33. Qxg6+ {[%clk 0:00:14]}  Kf8 {[%clk 0:00:07]} 34. Qf6+ {[%clk 0:00:14]}  Ke8 {[%clk 0:00:07]} 35. Qxh8+ {[%clk 0:00:12]}  Kd7 {[%clk 0:00:07]} 36. Qc3 {[%clk 0:00:13]}  Kc6 {[%clk 0:00:06]} 37. Qd2 {[%clk 0:00:13]}  Re8 {[%clk 0:00:06]} 38. h5 {[%clk 0:00:13]}  Re2 {[%clk 0:00:07]} 39. Qf4 {[%clk 0:00:10]}  Kb6 {[%clk 0:00:05]} 40. Kg2 {[%clk 0:00:10]}  Re6 {[%clk 0:00:01]} 41. Qd4+ {[%clk 0:00:10]}  Kb7 {[%clk 0:00:01]} 42. Kg3 {[%clk 0:00:09]}  Rd6 {[%clk 0:00:02]} 43. Qe4+ {[%clk 0:00:09]}  Kb6 {[%clk 0:00:03]} 44. Qe1 {[%clk 0:00:10]}  d2 {[%clk 0:00:03]} 45. Qd1 {[%clk 0:00:10]}  c5 {[%clk 0:00:04]} 46. h6 {[%clk 0:00:11]}  b4 {[%clk 0:00:04]} 47. h7 {[%clk 0:00:11]}  c3 {[%clk 0:00:05]} 48. bxc3 {[%clk 0:00:10]}  bxc3 {[%clk 0:00:06]} 49. h8=Q {[%clk 0:00:10]}  c2 {[%clk 0:00:07]} 50. Qb8+ {[%clk 0:00:11]}  Kc6 {[%clk 0:00:07]} 51. Qf3+ {[%clk 0:00:11]} 1-0


[Site "https://www.chess.com"]

[Event "Titled Tuesday Blitz April 19 Late 2022"]
[White "Kanyamarala, Trisha"]
[Black "Bilan, Danila"]
[WhiteFideId "45004722"]
[BlackFideId "24161918"]
[WhiteElo "2079"]
[BlackElo "2164"]
[Result "1-0"]
[Round "03"]
[TimeControl "180+1"]
[Date "2022.04.19"]
[WhiteClock "0:00:04"]
[BlackClock "0:00:08"]

1. c4 {[%clk 0:03:00]}  c6 {[%clk 0:02:59]} 2. Nc3 {[%clk 0:03:00]}  d5 {[%clk 0:03:00]} 3. cxd5 {[%clk 0:02:58]}  cxd5 {[%clk 0:03:00]} 4. d4 {[%clk 0:02:58]}  Nf6 {[%clk 0:03:00]} 5. Bf4 {[%clk 0:02:58]}  a6 {[%clk 0:02:56]} 6. e3 {[%clk 0:02:58]}  Nc6 {[%clk 0:02:56]} 7. Nf3 {[%clk 0:02:54]}  e6 {[%clk 0:02:54]} 8. Bd3 {[%clk 0:02:53]}  Bd6 {[%clk 0:02:54]} 9. Bxd6 {[%clk 0:02:52]}  Qxd6 {[%clk 0:02:55]} 10. O-O {[%clk 0:02:53]}  O-O {[%clk 0:02:55]} 11. a3 {[%clk 0:02:53]}  b5 {[%clk 0:02:52]} 12. b4 {[%clk 0:02:50]}  e5 {[%clk 0:02:29]} 13. dxe5 {[%clk 0:02:46]}  Nxe5 {[%clk 0:02:30]} 14. Nxe5 {[%clk 0:02:39]}  Qxe5 {[%clk 0:02:31]} 15. Ne2 {[%clk 0:02:36]}  Bg4 {[%clk 0:02:26]} 16. h3 {[%clk 0:02:33]}  Bh5 {[%clk 0:02:20]} 17. Qb3 {[%clk 0:02:27]}  Bxe2 {[%clk 0:01:55]} 18. Bxe2 {[%clk 0:02:28]}  Ne4 {[%clk 0:01:37]} 19. Rad1 {[%clk 0:02:17]}  Nc3 {[%clk 0:01:24]} 20. Rd2 {[%clk 0:02:13]}  d4 {[%clk 0:01:12]} 21. Bf3 {[%clk 0:01:41]}  dxe3 {[%clk 0:01:03]} 22. fxe3 {[%clk 0:01:14]}  Qxe3+ {[%clk 0:01:02]} 23. Kh1 {[%clk 0:01:13]}  Qxd2 {[%clk 0:00:38]} 24. Bxa8 {[%clk 0:01:12]}  Qe2 {[%clk 0:00:26]} 25. Kg1 {[%clk 0:00:54]}  Qe3+ {[%clk 0:00:18]} 26. Kh1 {[%clk 0:00:54]}  Qd3 {[%clk 0:00:16]} 27. Rf3 {[%clk 0:00:48]}  Qd1+ {[%clk 0:00:09]} 28. Qxd1 {[%clk 0:00:48]}  Nxd1 {[%clk 0:00:10]} 29. Bd5 {[%clk 0:00:45]}  g6 {[%clk 0:00:07]} 30. Kg1 {[%clk 0:00:44]}  Nb2 {[%clk 0:00:07]} 31. Bb7 {[%clk 0:00:33]}  Rb8 {[%clk 0:00:07]} 32. Bxa6 {[%clk 0:00:21]}  Kg7 {[%clk 0:00:03]} 33. Rc3 {[%clk 0:00:20]}  Rb6 {[%clk 0:00:02]} 34. Bc8 {[%clk 0:00:17]}  Nc4 {[%clk 0:00:02]} 35. a4 {[%clk 0:00:14]}  Rb8 {[%clk 0:00:03]} 36. Ba6 {[%clk 0:00:12]}  Nb2 {[%clk 0:00:01]} 37. Bxb5 {[%clk 0:00:11]}  Nxa4 {[%clk 0:00:02]} 38. Bxa4 {[%clk 0:00:11]}  Ra8 {[%clk 0:00:03]} 39. Ra3 {[%clk 0:00:10]}  Rb8 {[%clk 0:00:03]} 40. b5 {[%clk 0:00:10]}  Kf6 {[%clk 0:00:04]} 41. Re3 {[%clk 0:00:09]}  Kf5 {[%clk 0:00:04]} 42. Kf2 {[%clk 0:00:07]}  g5 {[%clk 0:00:04]} 43. g4+ {[%clk 0:00:06]}  Kf6 {[%clk 0:00:05]} 44. Kf3 {[%clk 0:00:06]}  h6 {[%clk 0:00:05]} 45. Rb3 {[%clk 0:00:06]}  Ra8 {[%clk 0:00:05]} 46. Rb4 {[%clk 0:00:06]}  Ke5 {[%clk 0:00:05]} 47. b6 {[%clk 0:00:07]}  Rc8 {[%clk 0:00:06]} 48. b7 {[%clk 0:00:07]}  Rb8 {[%clk 0:00:07]} 49. Bd7 {[%clk 0:00:05]}  Kd6 {[%clk 0:00:08]} 50. Bc8 {[%clk 0:00:06]}  Kc7 {[%clk 0:00:09]} 51. Rd4 {[%clk 0:00:06]}  Kc6 {[%clk 0:00:09]} 52. Re4 {[%clk 0:00:05]}  Kd6 {[%clk 0:00:10]} 53. Re8 {[%clk 0:00:04]}  f6 {[%clk 0:00:08]} 54. Rh8 {[%clk 0:00:04]}  Ke7 {[%clk 0:00:07]} 55. Rxh6 {[%clk 0:00:04]}  Rxb7 {[%clk 0:00:08]} 56. Bxb7 {[%clk 0:00:04]} 1-0


[Site "https://www.chess.com"]

[Event "Titled Tuesday Blitz April 19 Late 2022"]
[White "Karwowski, Kacper"]
[Black "Stanisz, Patryk"]
[WhiteFideId "1126032"]
[BlackFideId "1123106"]
[WhiteElo "2261"]
[BlackElo "1833"]
[Result "1/2-1/2"]
[Round "03"]
[TimeControl "180+1"]
[Date "2022.04.19"]
[WhiteClock "0:00:05"]
[BlackClock "0:00:07"]

1. e4 {[%clk 0:02:56]}  c5 {[%clk 0:02:59]} 2. b3 {[%clk 0:02:54]}  Nc6 {[%clk 0:02:57]} 3. Bb2 {[%clk 0:02:53]}  d6 {[%clk 0:02:53]} 4. Bb5 {[%clk 0:02:45]}  Nf6 {[%clk 0:02:48]} 5. Bxc6+ {[%clk 0:02:41]}  bxc6 {[%clk 0:02:46]} 6. d3 {[%clk 0:02:41]}  e5 {[%clk 0:02:44]} 7. Nd2 {[%clk 0:02:40]}  Be7 {[%clk 0:02:42]} 8. Ne2 {[%clk 0:02:39]}  O-O {[%clk 0:02:42]} 9. O-O {[%clk 0:02:40]}  Nh5 {[%clk 0:02:26]} 10. f4 {[%clk 0:02:29]}  Nxf4 {[%clk 0:02:19]} 11. Nxf4 {[%clk 0:02:29]}  exf4 {[%clk 0:02:20]} 12. Rxf4 {[%clk 0:02:29]}  Bg5 {[%clk 0:02:21]} 13. Rf1 {[%clk 0:02:13]}  Be3+ {[%clk 0:02:20]} 14. Kh1 {[%clk 0:02:12]}  Bd4 {[%clk 0:02:07]} 15. Bxd4 {[%clk 0:02:03]}  cxd4 {[%clk 0:02:08]} 16. Qh5 {[%clk 0:01:39]}  h6 {[%clk 0:01:55]} 17. Rf2 {[%clk 0:01:31]}  Qg5 {[%clk 0:01:50]} 18. Qxg5 {[%clk 0:01:30]}  hxg5 {[%clk 0:01:51]} 19. Nf3 {[%clk 0:01:27]}  c5 {[%clk 0:01:34]} 20. Nxg5 {[%clk 0:01:26]}  f6 {[%clk 0:01:26]} 21. Nf3 {[%clk 0:01:25]}  Bg4 {[%clk 0:01:26]} 22. a4 {[%clk 0:01:22]}  Kf7 {[%clk 0:01:16]} 23. Nh4 {[%clk 0:01:16]}  Rh8 {[%clk 0:01:02]} 24. Nf5 {[%clk 0:01:12]}  Bxf5 {[%clk 0:01:00]} 25. Rxf5 {[%clk 0:01:12]}  Ke6 {[%clk 0:01:01]} 26. Raf1 {[%clk 0:01:06]}  Rh4 {[%clk 0:00:57]} 27. h3 {[%clk 0:01:02]}  Rf8 {[%clk 0:00:34]} 28. Kh2 {[%clk 0:00:58]}  a5 {[%clk 0:00:27]} 29. g3 {[%clk 0:00:54]}  Rh7 {[%clk 0:00:20]} 30. Kg2 {[%clk 0:00:55]}  Rfh8 {[%clk 0:00:20]} 31. Rh1 {[%clk 0:00:49]}  Rh6 {[%clk 0:00:19]} 32. g4 {[%clk 0:00:23]}  Rh4 {[%clk 0:00:16]} 33. Rf3 {[%clk 0:00:22]}  R8h6 {[%clk 0:00:13]} 34. Rhf1 {[%clk 0:00:21]}  Rh7 {[%clk 0:00:08]} 35. Rg3 {[%clk 0:00:21]}  g5 {[%clk 0:00:06]} 36. Rf5 {[%clk 0:00:18]}  R4h6 {[%clk 0:00:06]} 37. Rgf3 {[%clk 0:00:14]}  Rh8 {[%clk 0:00:06]} 38. Rd5 {[%clk 0:00:13]}  R8h7 {[%clk 0:00:05]} 39. Rdf5 {[%clk 0:00:06]}  Rh8 {[%clk 0:00:05]} 40. Rg3 {[%clk 0:00:06]}  R8h7 {[%clk 0:00:06]} 41. Rf1 {[%clk 0:00:06]}  Rh8 {[%clk 0:00:06]} 42. Rh1 {[%clk 0:00:06]}  R8h7 {[%clk 0:00:06]} 43. Rf3 {[%clk 0:00:06]}  Rh4 {[%clk 0:00:06]} 44. Rg3 {[%clk 0:00:05]}  R4h6 {[%clk 0:00:06]} 45. Rf1 {[%clk 0:00:05]}  Rh4 {[%clk 0:00:06]} 46. Rf5 {[%clk 0:00:05]}  R4h6 {[%clk 0:00:07]} 1/2-1/2


[Site "https://www.chess.com"]